[Event "13th Arad Open 2020"]
[Site "Arad"]
[Date "2020.09.26"]
[Round "2.6"]
[White "Talu, Mircea"]
[Black "Dobrin, Ionut-Alexandru"]
[Result "1/2-1/2"]
[ECO "E63"]
[WhiteElo "2351"]
[BlackElo "2040"]
[Annotator "ChessBase"]
[PlyCount "138"]
[EventDate "2020.09.25"]
[EventType "swiss"]
[EventCountry "ROU"]
[SourceTitle "playchess.com"]
[Source "ChessBase"]
[SourceQuality "1"]
[TimeControl "5400+30"]

1. d4 {[%emt 0:02:42]} Nf6 {[%emt 0:00:00]} 2. c4 {[%emt 0:00:06]} g6 {[%emt 0:00:15]} 3. g3 {[%emt 0:00:07]} Bg7 {[%emt 0:00:14]} 4. Bg2 {[%emt 0:00:09]} O-O {[%emt 0:00:15]} 5. Nc3 {[%emt 0:00:06]} d6 {[%emt 0:00:12]} 6. Nf3 {[%emt 0:00:08]} Nc6 {[%emt 0:00:27]} 7. O-O {[%emt 0:00:09]} a6 {[%emt 0:00:20]} 8. Bf4 {[%emt 0:00:56]} Rb8 {[%emt 0:03:39]} 9. Rc1 {[%emt 0:00:27]} h6 {[%emt 0:04:11]} 10. Qd3 {[%emt 0:02:42]} Nh5 {[%emt 0:06:24]} 11. Bd2 {[%emt 0:05:07]} e5 {[%emt 0:02:22]} 12. dxe5 {[%emt 0:06:55]} dxe5 {[%emt 0:03:38]} 13. Ne1 {[%emt 0:06:04]} Nd4 {[%emt 0:07:08]} 14. e3 {[%emt 0:02:26]} Ne6 {[%emt 0:03:02]} 15. Qxd8 {[%emt 0:07:30]} Rxd8 {[%emt 0:00:15]} 16. Rd1 {[%emt 0:00:56]} b5 {[%emt 0:04:52]} 17. cxb5 {[%emt 0:01:12]} axb5 {[%emt 0:00:10]} 18. Nd5 {[%emt 0:02:40]} Bb7 {[%emt 0:06:33]} 19. Ba5 {[%emt 0:21:11]} e4 {[%emt 0:15:54]} 20. Bxe4 {[%emt 0:00:55]} Bxb2 {[%emt 0:02:03]} 21. Rd2 {[%emt 0:02:31]} Nf6 {[%emt 0:05:08]} 22. Rxb2 {[%emt 0:03:57]} Bxd5 {[%emt 0:02:57]} 23. Bd3 {[%emt 0:02:03]} Bc6 {[%emt 0:06:16]} 24. Rc2 {[%emt 0:01:57]} Bd5 {[%emt 0:02:13]} 25. a3 {[%emt 0:02:51]} Ra8 {[%emt 0:04:02]} 26. Bxc7 {[%emt 0:07:01]} Rd7 {[%emt 0:02:00]} 27. Be5 {[%emt 0:04:55]} Ng4 {[%emt 0:00:30]} 28. Bb2 {[%emt 0:00:12]} Ng5 {[%emt 0:01:30]} 29. e4 {[%emt 0:00:48]} Bxe4 {[%emt 0:02:15]} 30. Bxe4 {[%emt 0:00:16]} Nxe4 {[%emt 0:00:07]} 31. f3 {[%emt 0:02:41]} Ne3 {[%emt 0:02:01]} 32. fxe4 {[%emt 0:00:08]} Nxc2 {[%emt 0:00:03]} 33. Nxc2 {[%emt 0:00:07]} Rd2 {[%emt 0:00:12]} 34. Rf2 {[%emt 0:00:11]} Rad8 {[%emt 0:00:19]} 35. Nd4 {[%emt 0:05:53]} R8xd4 {[%emt 0:00:28]} 36. Bxd4 {[%emt 0:00:07]} Rxd4 {[%emt 0:00:03]} 37. Re2 {[%emt 0:01:45]} Rd3 {[%emt 0:00:11]} 38. Rb2 {[%emt 0:00:30]} Rxa3 {[%emt 0:00:13]} 39. Rxb5 {[%emt 0:00:03]} Ra2 {[%emt 0:00:21]} 40. h3 {[%emt 0:00:38]} Kf8 {[%emt 0:00:28]} 41. Rb3 {[%emt 0:01:53]} Ke7 {[%emt 0:00:11]} 42. Rf3 {[%emt 0:02:00]} Re2 {[%emt 0:00:38]} 43. Rf4 {[%emt 0:01:18]} g5 {[%emt 0:00:09]} 44. Rf2 {[%emt 0:00:29]} Rxe4 {[%emt 0:01:33]} 45. Kg2 {[%emt 0:00:12]} h5 {[%emt 0:00:55]} 46. Rf5 {[%emt 0:00:16]} f6 {[%emt 0:00:19]} 47. h4 {[%emt 0:03:36]} Ke6 {[%emt 0:05:15]} 48. Ra5 {[%emt 0:00:12]} Re5 {[%emt 0:02:24]} 49. Ra6+ {[%emt 0:00:06]} Kf5 {[%emt 0:00:07]} 50. hxg5 {[%emt 0:00:05]} fxg5 {[%emt 0:00:05]} 51. Ra4 {[%emt 0:02:26]} Re4 {[%emt 0:00:06]} 52. Ra2 {[%emt 0:00:20]} Re5 {[%emt 0:01:42]} 53. Ra4 {[%emt 0:00:34]} Rd5 {[%emt 0:00:08]} 54. Ra2 {[%emt 0:00:20]} Ke4 {[%emt 0:01:56]} 55. Re2+ {[%emt 0:01:12]} Kd3 {[%emt 0:00:18]} 56. Re8 {[%emt 0:00:19]} g4 {[%emt 0:00:30]} 57. Kf2 {[%emt 0:00:43]} Rf5+ {[%emt 0:01:34]} 58. Kg2 {[%emt 0:00:02]} Kd4 {[%emt 0:00:24]} 59. Rd8+ {[%emt 0:01:12]} Rd5 {[%emt 0:00:33]} 60. Re8 {[%emt 0:00:10]} Re5 {[%emt 0:00:21]} 61. Rd8+ {[%emt 0:00:17]} Ke3 {[%emt 0:00:14]} 62. Ra8 {[%emt 0:00:19]} Rd5 {[%emt 0:03:07]} 63. Re8+ {[%emt 0:00:27]} Kd2 {[%emt 0:00:17]} 64. Kf2 {[%emt 0:00:46]} Rd3 {[%emt 0:01:36]} 65. Re5 {[%emt 0:01:18]} Rf3+ {[%emt 0:01:07]} 66. Kg2 {[%emt 0:00:14]} Re3 {[%emt 0:00:06]} 67. Rd5+ {[%emt 0:00:26]} Ke1 {[%emt 0:01:13]} 68. Rxh5 {[%emt 0:00:20]} Re2+ {[%emt 0:00:03]} 69. Kg1 {[%emt 0:00:09]} Re3 {[%emt 0:00:06]} 1/2-1/2

[Event "13th Arad Open 2020"]
[Site "Arad"]
[Date "2020.09.26"]
[Round "2.7"]
[White "Prisacaru, Stefan-Emilian"]
[Black "Patrascu, Catalin-Lucian"]
[Result "0-1"]
[ECO "A45"]
[WhiteElo "2007"]
[BlackElo "2320"]
[Annotator "ChessBase"]
[PlyCount "90"]
[EventDate "2020.09.25"]
[EventType "swiss"]
[EventCountry "ROU"]
[SourceTitle "playchess.com"]
[Source "ChessBase"]
[SourceQuality "1"]
[TimeControl "5400+30"]

1. d4 {[%emt 0:00:00]} Nf6 {[%emt 0:00:00]} 2. Nc3 {[%emt 0:00:00]} d6 {[%emt 0:03:15]} 3. e4 {[%emt 0:01:28]} Nbd7 {[%emt 0:00:26]} 4. f4 {[%emt 0:00:41]} e5 {[%emt 0:00:14]} 5. dxe5 {[%emt 0:07:15]} dxe5 {[%emt 0:00:05]} 6. fxe5 {[%emt 0:00:13]} Nxe5 {[%emt 0:00:24]} 7. Qxd8+ {[%emt 0:00:06]} Kxd8 {[%emt 0:00:02]} 8. Nf3 {[%emt 0:00:50]} Bd6 {[%emt 0:08:19]} 9. Bg5 {[%emt 0:03:15]} c6 {[%emt 0:03:34]} 10. O-O-O {[%emt 0:01:47]} Kc7 {[%emt 0:01:19]} 11. Bf4 {[%emt 0:14:28]} Nd3+ {[%emt 0:03:10]} 12. Bxd3 {[%emt 0:05:18]} Bxf4+ {[%emt 0:00:39]} 13. Kb1 {[%emt 0:00:05]} Ng4 {[%emt 0:07:38]} 14. Rde1 {[%emt 0:03:57]} Ne5 {[%emt 0:04:21]} 15. Ne2 {[%emt 0:15:45]} Nxf3 {[%emt 0:15:39]} 16. gxf3 {[%emt 0:00:02]} Bd6 {[%emt 0:00:54]} 17. Ng3 {[%emt 0:03:03]} Bh3 {[%emt 0:11:27]} 18. Bf1 {[%emt 0:02:21]} Be6 {[%emt 0:02:10]} 19. e5 {[%emt 0:02:23]} Be7 {[%emt 0:00:20]} 20. Bd3 {[%emt 0:02:54]} g6 {[%emt 0:05:40]} 21. h4 {[%emt 0:01:54]} h5 {[%emt 0:03:25]} 22. Ne4 {[%emt 0:02:08]} Rad8 {[%emt 0:01:55]} 23. Nf6 {[%emt 0:10:00]} Bxf6 {[%emt 0:06:56]} 24. exf6 {[%emt 0:00:01]} Rd6 {[%emt 0:00:47]} 25. Re4 {[%emt 0:00:17]} Bd7 {[%emt 0:05:42]} 26. Rf4 {[%emt 0:00:32]} Rd8 {[%emt 0:06:32]} 27. b3 {[%emt 0:01:13]} b5 {[%emt 0:04:35]} 28. Re1 {[%emt 0:01:27]} Re6 {[%emt 0:00:56]} 29. Rc1 {[%emt 0:02:20]} Bc8 {[%emt 0:00:43]} 30. Be4 {[%emt 0:00:56]} Re5 {[%emt 0:01:47]} 31. c4 {[%emt 0:01:03]} b4 {[%emt 0:00:07]} 32. Rg1 {[%emt 0:00:13]} Be6 {[%emt 0:00:31]} 33. Rg5 {[%emt 0:01:26]} Rxg5 {[%emt 0:01:16]} 34. hxg5 {[%emt 0:00:01]} Rd1+ {[%emt 0:00:40]} 35. Kb2 {[%emt 0:00:31]} Rg1 {[%emt 0:00:36]} 36. Bxg6 {[%emt 0:00:12]} Rxg5 {[%emt 0:00:06]} 37. Bd3 {[%emt 0:00:46]} Rg2+ {[%emt 0:00:16]} 38. Kb1 {[%emt 0:01:07]} Rh2 {[%emt 0:00:42]} 39. c5 {[%emt 0:00:34]} a5 {[%emt 0:00:49]} 40. Re4 {[%emt 0:00:33]} Rf2 {[%emt 0:01:11]} 41. Rf4 {[%emt 0:01:00]} h4 {[%emt 0:00:44]} 42. Rxh4 {[%emt 0:01:22]} Rxf3 {[%emt 0:00:06]} 43. Bc2 {[%emt 0:00:32]} Rxf6 {[%emt 0:00:17]} 44. Kb2 {[%emt 0:00:38]} Rf2 {[%emt 0:00:09]} 45. Rh7 {[%emt 0:00:08]} Rxc2+ {[%emt 0:00:06]} 0-1

[Event "13th Arad Open 2020"]
[Site "Arad"]
[Date "2020.09.26"]
[Round "2.8"]
[White "Ghimpu, Samuel-Timotei"]
[Black "Oltean, Cristian-Daniel"]
[Result "1/2-1/2"]
[ECO "A80"]
[WhiteElo "2302"]
[BlackElo "2001"]
[Annotator "ChessBase"]
[PlyCount "34"]
[EventDate "2020.09.25"]
[EventType "swiss"]
[EventCountry "ROU"]
[SourceTitle "playchess.com"]
[Source "ChessBase"]
[SourceQuality "1"]
[TimeControl "5400+30"]

1. d4 {[%emt 0:00:00]} f5 {[%emt 0:00:00]} 2. Nc3 {[%emt 0:01:02]} d5 {[%emt 0:00:27]} 3. Bg5 {[%emt 0:00:12]} h6 {[%emt 0:03:37]} 4. Bf4 {[%emt 0:00:41]} Nf6 {[%emt 0:00:57]} 5. e3 {[%emt 0:00:13]} e6 {[%emt 0:01:04]} 6. Nf3 {[%emt 0:01:21]} Bd6 {[%emt 0:02:26]} 7. Ne5 {[%emt 0:01:17]} O-O {[%emt 0:09:07]} 8. Bd3 {[%emt 0:06:45]} c6 {[%emt 0:10:24]} 9. g4 {[%emt 0:13:52]} Nxg4 {[%emt 0:41:46]} 10. h3 {[%emt 0:01:01]} Nxe5 {[%emt 0:09:03]} 11. dxe5 {[%emt 0:00:07]} Be7 {[%emt 0:03:35]} 12. Rg1 {[%emt 0:00:40]} Kh7 {[%emt 0:01:15]} 13. Qh5 {[%emt 0:01:28]} g5 {[%emt 0:06:16]} 14. h4 {[%emt 0:03:38]} Qe8 {[%emt 0:01:29]} 15. Qg4 {[%emt 0:00:08]} h5 {[%emt 0:02:38]} 16. Qe2 {[%emt 0:00:35]} gxf4 {[%emt 0:03:08]} 17. O-O-O {[%emt 0:01:07]} Nd7 1/2-1/2

[Event "13th Arad Open 2020"]
[Site "Arad"]
[Date "2020.09.26"]
[Round "2.9"]
[White "Breitkopf, Francisc"]
[Black "Antonica, Dragos-Andrei"]
[Result "0-1"]
[ECO "A16"]
[WhiteElo "1984"]
[BlackElo "2301"]
[Annotator "ChessBase"]
[PlyCount "92"]
[EventDate "2020.09.25"]
[EventType "swiss"]
[EventCountry "ROU"]
[SourceTitle "playchess.com"]
[Source "ChessBase"]
[SourceQuality "1"]
[TimeControl "5400+30"]

1. c4 {[%emt 0:00:40]} Nf6 {[%emt 0:00:00]} 2. Nc3 {[%emt 0:00:15]} c6 {[%emt 0:00:18]} 3. d4 {[%emt 0:03:59]} d5 {[%emt 0:00:06]} 4. cxd5 {[%emt 0:03:26]} cxd5 {[%emt 0:00:07]} 5. Qb3 {[%emt 0:01:44]} Nc6 {[%emt 0:00:31]} 6. Nf3 {[%emt 0:00:21]} a6 {[%emt 0:04:31]} 7. Bg5 {[%emt 0:08:36]} e6 {[%emt 0:05:41]} 8. e3 {[%emt 0:06:14]} b5 {[%emt 0:03:52]} 9. Bd3 {[%emt 0:09:24]} Be7 {[%emt 0:03:51]} 10. Rc1 {[%emt 0:00:29]} Na5 {[%emt 0:01:25]} 11. Qc2 {[%emt 0:09:56]} Bb7 {[%emt 0:06:54]} 12. O-O {[%emt 0:03:06]} Rc8 {[%emt 0:01:13]} 13. Qb1 {[%emt 0:04:19]} h6 {[%emt 0:00:21]} 14. Bxf6 {[%emt 0:02:58]} Bxf6 {[%emt 0:00:56]} 15. b4 {[%emt 0:02:18]} Nc4 {[%emt 0:01:20]} 16. a4 {[%emt 0:00:17]} Qb6 {[%emt 0:05:13]} 17. axb5 axb5 {[%emt 0:00:26]} 18. Qb3 {[%emt 0:12:36]} O-O {[%emt 0:01:35]} 19. h3 {[%emt 0:03:12]} Ra8 {[%emt 0:01:53]} 20. Ra1 {[%emt 0:00:02]} Ra6 {[%emt 0:01:53]} 21. Rxa6 {[%emt 0:01:05]} Qxa6 {[%emt 0:00:11]} 22. Rd1 {[%emt 0:07:52]} Ra8 {[%emt 0:02:22]} 23. Ne5 {[%emt 0:08:54]} Bxe5 {[%emt 0:06:44]} 24. dxe5 {[%emt 0:00:08]} Qc6 {[%emt 0:04:57]} 25. Ne2 {[%emt 0:00:03]} Ra3 {[%emt 0:11:15]} 26. Qb1 {[%emt 0:00:13]} d4 {[%emt 0:16:22]} 27. e4 {[%emt 0:00:19]} Rxd3 {[%emt 0:05:23]} 28. Qxd3 Nb2 29. Nxd4 {[%emt 0:03:41]} Qd7 {[%emt 0:02:06]} 30. Qe2 {[%emt 0:00:40]} Nxd1 {[%emt 0:00:08]} 31. Qxd1 {[%emt 0:00:01]} Bxe4 {[%emt 0:00:18]} 32. Qd2 {[%emt 0:01:31]} Qd5 {[%emt 0:00:11]} 33. f4 {[%emt 0:00:33]} Bxg2 {[%emt 0:01:27]} 34. h4 {[%emt 0:01:34]} Be4 {[%emt 0:00:56]} 35. Kf2 {[%emt 0:00:57]} Qc4 {[%emt 0:02:03]} 36. Ke3 {[%emt 0:02:00]} Bd5 {[%emt 0:00:34]} 37. Kf2 {[%emt 0:00:48]} Kf8 {[%emt 0:00:31]} 38. Ke3 {[%emt 0:01:52]} Qf1 {[%emt 0:03:31]} 39. Qf2 {[%emt 0:00:53]} Qc1+ {[%emt 0:04:33]} 40. Qd2 {[%emt 0:00:09]} Qa3+ {[%emt 0:00:08]} 41. Qd3 {[%emt 0:01:34]} Qxb4 {[%emt 0:00:40]} 42. Qxb5 {[%emt 0:00:43]} Qc3+ {[%emt 0:00:56]} 43. Qd3 {[%emt 0:00:51]} Qe1+ {[%emt 0:00:05]} 44. Ne2 {[%emt 0:00:36]} Qxh4 {[%emt 0:00:11]} 45. Qa3+ {[%emt 0:00:32]} Kg8 {[%emt 0:00:02]} 46. Qd6 {[%emt 0:00:23]} Qh3+ 0-1

[Event "13th Arad Open 2020"]
[Site "Arad"]
[Date "2020.09.26"]
[Round "2.10"]
[White "Ursan, Petru-Sebastian"]
[Black "Ambru, Dan-Calin"]
[Result "1-0"]
[ECO "E62"]
[WhiteElo "2248"]
[BlackElo "1985"]
[Annotator "ChessBase"]
[PlyCount "67"]
[EventDate "2020.09.25"]
[EventType "swiss"]
[EventCountry "ROU"]
[SourceTitle "playchess.com"]
[Source "ChessBase"]
[SourceQuality "1"]
[TimeControl "5400+30"]

1. c4 {[%emt 0:00:00]} Nf6 {[%emt 0:00:00]} 2. Nf3 {[%emt 0:00:00]} g6 {[%emt 0:00:00]} 3. g3 {[%emt 0:00:09]} Bg7 {[%emt 0:00:16]} 4. d4 {[%emt 0:00:20]} d6 {[%emt 0:00:09]} 5. Bg2 {[%emt 0:00:13]} O-O {[%emt 0:00:09]} 6. O-O {[%emt 0:00:10]} Nc6 {[%emt 0:00:41]} 7. Nc3 {[%emt 0:01:17]} e5 {[%emt 0:00:33]} 8. d5 {[%emt 0:01:08]} Nb8 {[%emt 0:00:07]} 9. e4 {[%emt 0:02:30]} a5 {[%emt 0:00:14]} 10. Ne1 {[%emt 0:00:46]} Na6 {[%emt 0:00:07]} 11. Nd3 {[%emt 0:00:28]} Nd7 {[%emt 0:00:14]} 12. Be3 {[%emt 0:16:07]} f5 {[%emt 0:03:48]} 13. Qd2 {[%emt 0:07:05]} b6 {[%emt 0:00:29]} 14. Rae1 {[%emt 0:11:05]} Nf6 {[%emt 0:08:08]} 15. f4 {[%emt 0:15:51]} Ng4 {[%emt 0:16:48]} 16. fxe5 {[%emt 0:01:11]} Nxe5 {[%emt 0:00:08]} 17. Nxe5 {[%emt 0:00:32]} Bxe5 {[%emt 0:00:15]} 18. Bd4 {[%emt 0:04:20]} Re8 {[%emt 0:12:46]} 19. exf5 {[%emt 0:02:13]} Bxd4+ {[%emt 0:00:30]} 20. Qxd4 {[%emt 0:00:06]} Rxe1 {[%emt 0:01:16]} 21. Rxe1 {[%emt 0:00:50]} Bxf5 {[%emt 0:00:13]} 22. Ne4 {[%emt 0:15:59]} Bxe4 {[%emt 0:17:18]} 23. Qxe4 {[%emt 0:00:47]} Qd7 {[%emt 0:09:57]} 24. Qe7 {[%emt 0:02:01]} Qg4 {[%emt 0:05:27]} 25. Rf1 {[%emt 0:02:28]} Qd4+ {[%emt 0:01:36]} 26. Kh1 {[%emt 0:00:32]} Qg7 {[%emt 0:07:12]} 27. Qe6+ {[%emt 0:05:23]} Kh8 {[%emt 0:00:11]} 28. Rf7 {[%emt 0:01:05]} Qh6 {[%emt 0:03:48]} 29. Qe7 {[%emt 0:03:35]} Nc5 {[%emt 0:03:32]} 30. Qxc7 {[%emt 0:02:14]} Re8 {[%emt 0:00:14]} 31. Qxd6 {[%emt 0:00:48]} Nd3 {[%emt 0:03:52]} 32. Rf1 {[%emt 0:00:41]} Qe3 {[%emt 0:03:58]} 33. Qf6+ {[%emt 0:00:18]} Kg8 {[%emt 0:00:08]} 34. d6 {[%emt 0:00:15]} 1-0

[Event "13th Arad Open 2020"]
[Site "Arad"]
[Date "2020.09.27"]
[Round "3.1"]
[White "Solodovnichenko, Yuri"]
[Black "Ursan, Petru-Sebastian"]
[Result "1-0"]
[ECO "A40"]
[WhiteElo "2553"]
[BlackElo "2248"]
[Annotator "ChessBase"]
[PlyCount "33"]
[EventDate "2020.09.25"]
[EventType "swiss"]
[EventCountry "ROU"]
[SourceTitle "playchess.com"]
[Source "ChessBase"]
[SourceQuality "1"]
[TimeControl "5400+30"]

1. d4 {[%emt 0:00:00]} g6 {[%emt 0:00:00]} 2. e4 {[%emt 0:00:00]} c5 {[%emt 0:00:13]} 3. dxc5 {[%emt 0:05:23]} Bg7 {[%emt 0:10:59]} 4. Nc3 {[%emt 0:02:41]} Qa5 {[%emt 0:04:50]} 5. Bd2 {[%emt 0:00:18]} Qxc5 {[%emt 0:00:35]} 6. Nd5 {[%emt 0:05:24]} Na6 {[%emt 0:09:05]} 7. Nf3 {[%emt 0:00:59]} Bxb2 {[%emt 0:10:27]} 8. Rb1 {[%emt 0:02:07]} Bg7 {[%emt 0:04:09]} 9. Bxa6 {[%emt 0:00:53]} bxa6 {[%emt 0:00:09]} 10. O-O {[%emt 0:25:41]} d6 {[%emt 0:20:51]} 11. Bb4 {[%emt 0:02:42]} Qc6 {[%emt 0:04:27]} 12. Ba5 {[%emt 0:00:25]} Bb7 {[%emt 0:07:23]} 13. Nc7+ {[%emt 0:04:13]} Kd7 {[%emt 0:00:19]} 14. Nxa8 {[%emt 0:05:35]} Bxa8 {[%emt 0:00:09]} 15. e5 {[%emt 0:02:44]} Nh6 {[%emt 0:01:07]} 16. Qd4 {[%emt 0:00:07]} Qc5 {[%emt 0:07:52]} 17. e6+ {[%emt 0:00:15]} 1-0

[Event "13th Arad Open 2020"]
[Site "Arad"]
[Date "2020.09.27"]
[Round "3.2"]
[White "Daianu, Cristian-Clement"]
[Black "Istratescu, Andrei"]
[Result "0-1"]
[ECO "B90"]
[WhiteElo "2224"]
[BlackElo "2551"]
[Annotator "ChessBase"]
[PlyCount "82"]
[EventDate "2020.09.25"]
[EventType "swiss"]
[EventCountry "ROU"]
[SourceTitle "playchess.com"]
[Source "ChessBase"]
[SourceQuality "1"]
[TimeControl "5400+30"]

1. e4 {[%emt 0:00:00]} c5 {[%emt 0:00:00]} 2. Nf3 {[%emt 0:00:00]} d6 {[%emt 0:00:01]} 3. d4 {[%emt 0:00:01]} cxd4 {[%emt 0:00:04]} 4. Nxd4 {[%emt 0:00:08]} Nf6 {[%emt 0:00:04]} 5. Nc3 {[%emt 0:00:05]} a6 {[%emt 0:00:27]} 6. h3 {[%emt 0:03:26]} e6 {[%emt 0:03:00]} 7. g4 {[%emt 0:02:07]} h6 {[%emt 0:00:06]} 8. Bg2 {[%emt 0:01:29]} g5 {[%emt 0:01:11]} 9. Be3 {[%emt 0:02:53]} Nbd7 {[%emt 0:02:21]} 10. Qe2 {[%emt 0:01:13]} Qc7 {[%emt 0:12:05]} 11. O-O-O {[%emt 0:03:51]} Be7 {[%emt 0:00:32]} 12. h4 {[%emt 0:05:17]} Rg8 {[%emt 0:00:07]} 13. hxg5 {[%emt 0:04:58]} hxg5 {[%emt 0:00:16]} 14. f4 {[%emt 0:15:09]} gxf4 {[%emt 0:00:15]} 15. Bxf4 {[%emt 0:00:01]} Ne5 {[%emt 0:00:06]} 16. g5 {[%emt 0:06:52]} Nfd7 {[%emt 0:01:35]} 17. Kb1 {[%emt 0:08:02]} Ng6 {[%emt 0:10:03]} 18. Bc1 {[%emt 0:05:55]} Nde5 {[%emt 0:00:24]} 19. Qf2 {[%emt 0:11:49]} Bd7 {[%emt 0:16:51]} 20. Nce2 {[%emt 0:00:50]} O-O-O {[%emt 0:02:19]} 21. Rh3 {[%emt 0:02:59]} Rg7 {[%emt 0:25:57]} 22. Rc3 {[%emt 0:06:52]} Nc6 {[%emt 0:02:54]} 23. Nxc6 {[%emt 0:03:23]} Bxc6 {[%emt 0:00:08]} 24. Be3 {[%emt 0:04:41]} Rdg8 {[%emt 0:01:47]} 25. Bb6 {[%emt 0:06:38]} Qd7 {[%emt 0:01:12]} 26. Bd4 {[%emt 0:00:33]} Rh7 {[%emt 0:00:18]} 27. Rh1 {[%emt 0:03:42]} Rxh1+ {[%emt 0:01:25]} 28. Bxh1 {[%emt 0:00:02]} Bxg5 {[%emt 0:00:36]} 29. e5 {[%emt 0:00:24]} d5 {[%emt 0:00:50]} 30. a3 {[%emt 0:00:29]} Bd8 {[%emt 0:02:00]} 31. Bf3 {[%emt 0:00:39]} Bc7 {[%emt 0:03:00]} 32. Bh5 {[%emt 0:00:19]} Nxe5 {[%emt 0:01:52]} 33. Bxe5 {[%emt 0:00:33]} Bxe5 {[%emt 0:00:05]} 34. Qxf7 {[%emt 0:00:56]} Rg5 {[%emt 0:01:27]} 35. Re3 {[%emt 0:00:38]} Qxf7 {[%emt 0:01:21]} 36. Bxf7 {[%emt 0:00:07]} Kd7 {[%emt 0:00:07]} 37. Rh3 {[%emt 0:00:42]} Rg7 {[%emt 0:02:04]} 38. Bh5 {[%emt 0:00:10]} Kd6 {[%emt 0:00:56]} 39. Bf3 {[%emt 0:00:16]} Be8 {[%emt 0:00:15]} 40. c3 {[%emt 0:00:28]} Bg6+ {[%emt 0:00:19]} 41. Kc1 {[%emt 0:00:08]} Rh7 {[%emt 0:00:59]} 0-1

[Event "13th Arad Open 2020"]
[Site "Arad"]
[Date "2020.09.27"]
[Round "3.3"]
[White "Manolache, Marius"]
[Black "Pisu, Robert-Daniel"]
[Result "1-0"]
[ECO "A48"]
[WhiteElo "2541"]
[BlackElo "2223"]
[Annotator "ChessBase"]
[PlyCount "57"]
[EventDate "2020.09.25"]
[EventType "swiss"]
[EventCountry "ROU"]
[SourceTitle "playchess.com"]
[Source "ChessBase"]
[SourceQuality "1"]
[TimeControl "5400+30"]

1. d4 {[%emt 0:00:00]} Nf6 {[%emt 0:00:00]} 2. Nf3 {[%emt 0:00:00]} g6 {[%emt 0:00:00]} 3. c3 {[%emt 0:00:18]} Bg7 {[%emt 0:00:33]} 4. Bg5 {[%emt 0:00:49]} d5 {[%emt 0:01:18]} 5. Nbd2 {[%emt 0:00:41]} Nbd7 {[%emt 0:03:18]} 6. h3 {[%emt 0:01:19]} c5 {[%emt 0:05:01]} 7. e3 {[%emt 0:00:56]} O-O {[%emt 0:00:40]} 8. Be2 {[%emt 0:01:04]} b6 {[%emt 0:01:45]} 9. O-O {[%emt 0:01:13]} Bb7 {[%emt 0:00:40]} 10. a4 {[%emt 0:05:21]} Ne4 {[%emt 0:16:50]} 11. Nxe4 {[%emt 0:02:55]} dxe4 {[%emt 0:00:01]} 12. Nd2 {[%emt 0:00:16]} h6 {[%emt 0:01:26]} 13. Bh4 {[%emt 0:01:45]} cxd4 {[%emt 0:02:25]} 14. cxd4 {[%emt 0:00:44]} g5 {[%emt 0:02:59]} 15. Bg3 {[%emt 0:00:14]} e5 {[%emt 0:00:04]} 16. Nc4 {[%emt 0:03:25]} exd4 {[%emt 0:05:31]} 17. exd4 {[%emt 0:03:32]} f5 {[%emt 0:09:30]} 18. Qb3 {[%emt 0:04:20]} Bd5 {[%emt 0:04:22]} 19. Qb5 {[%emt 0:00:15]} Nf6 {[%emt 0:02:35]} 20. Be5 {[%emt 0:00:57]} Be6 {[%emt 0:13:50]} 21. a5 {[%emt 0:09:09]} Qd7 {[%emt 0:11:22]} 22. Nd6 {[%emt 0:02:28]} Rfd8 {[%emt 0:07:26]} 23. axb6 {[%emt 0:04:29]} Qxb5 {[%emt 0:00:06]} 24. Nxb5 {[%emt 0:00:09]} axb6 {[%emt 0:07:03]} 25. Rxa8 {[%emt 0:00:08]} Rxa8 {[%emt 0:00:04]} 26. Nc7 {[%emt 0:00:06]} Bd5 {[%emt 0:01:54]} 27. Nxa8 {[%emt 0:00:28]} Bxa8 {[%emt 0:00:08]} 28. Bc4+ {[%emt 0:00:27]} Kh7 {[%emt 0:01:01]} 29. Ra1 {[%emt 0:00:15]} 1-0

[Event "13th Arad Open 2020"]
[Site "Arad"]
[Date "2020.09.27"]
[Round "3.4"]
[White "Andronescu, Madalin"]
[Black "Kozak, Adam"]
[Result "0-1"]
[ECO "B29"]
[WhiteElo "2165"]
[BlackElo "2503"]
[Annotator "ChessBase"]
[PlyCount "116"]
[EventDate "2020.09.25"]
[EventType "swiss"]
[EventCountry "ROU"]
[SourceTitle "playchess.com"]
[Source "ChessBase"]
[SourceQuality "1"]
[TimeControl "5400+30"]

1. e4 {[%emt 0:00:00]} c5 {[%emt 0:00:27]} 2. Nf3 {[%emt 0:00:00]} Nf6 {[%emt 0:00:22]} 3. Nc3 {[%emt 0:00:50]} d5 {[%emt 0:00:17]} 4. exd5 {[%emt 0:00:32]} Nxd5 {[%emt 0:00:19]} 5. Bb5+ {[%emt 0:04:27]} Bd7 {[%emt 0:00:14]} 6. Qe2 {[%emt 0:02:49]} Nf6 {[%emt 0:03:46]} 7. Ne5 {[%emt 0:03:59]} e6 {[%emt 0:03:52]} 8. Ne4 {[%emt 0:09:37]} Nxe4 {[%emt 0:04:34]} 9. Qxe4 {[%emt 0:05:23]} Qc7 {[%emt 0:01:31]} 10. Nxd7 {[%emt 0:02:12]} Nxd7 {[%emt 0:00:11]} 11. O-O {[%emt 0:00:49]} a6 {[%emt 0:05:05]} 12. Be2 {[%emt 0:01:06]} Bd6 {[%emt 0:03:20]} 13. Bf3 {[%emt 0:02:04]} Rb8 {[%emt 0:01:15]} 14. g3 {[%emt 0:01:25]} Be5 {[%emt 0:01:46]} 15. Re1 {[%emt 0:04:54]} O-O {[%emt 0:01:09]} 16. c3 {[%emt 0:02:33]} h6 {[%emt 0:16:17]} 17. d3 {[%emt 0:05:51]} Rfd8 {[%emt 0:06:01]} 18. Bd2 {[%emt 0:01:01]} Bd6 {[%emt 0:05:50]} 19. Rad1 {[%emt 0:07:23]} b5 {[%emt 0:07:48]} 20. d4 {[%emt 0:06:31]} cxd4 {[%emt 0:06:32]} 21. cxd4 {[%emt 0:00:03]} Nf6 {[%emt 0:00:21]} 22. Qh4 {[%emt 0:00:15]} Qe7 {[%emt 0:01:39]} 23. Ba5 {[%emt 0:04:38]} Rdc8 {[%emt 0:01:03]} 24. d5 {[%emt 0:00:42]} Rc4 {[%emt 0:01:47]} 25. Qh3 {[%emt 0:01:30]} e5 {[%emt 0:00:16]} 26. Bc3 {[%emt 0:01:13]} b4 {[%emt 0:03:45]} 27. Bxe5 {[%emt 0:00:17]} Bxe5 {[%emt 0:00:30]} 28. d6 {[%emt 0:00:04]} Qd7 {[%emt 0:00:01]} 29. Qf1 {[%emt 0:06:58]} Rc5 {[%emt 0:03:14]} 30. Qxa6 {[%emt 0:00:06]} Rd8 {[%emt 0:02:19]} 31. Rd3 {[%emt 0:03:39]} Bxd6 {[%emt 0:05:33]} 32. Red1 {[%emt 0:00:34]} Ne8 {[%emt 0:00:07]} 33. Qb6 {[%emt 0:00:30]} Qc7 {[%emt 0:01:12]} 34. Qxb4 {[%emt 0:00:24]} Rc2 {[%emt 0:02:20]} 35. Qd4 {[%emt 0:02:59]} Rc8 {[%emt 0:04:18]} 36. R1d2 {[%emt 0:01:19]} Be5 {[%emt 0:01:54]} 37. Qb4 {[%emt 0:00:51]} Rb8 {[%emt 0:01:16]} 38. Qa4 {[%emt 0:01:11]} Rxd2 {[%emt 0:00:34]} 39. Rxd2 {[%emt 0:00:04]} Qc1+ {[%emt 0:00:43]} 40. Rd1 {[%emt 0:00:04]} Qxb2 {[%emt 0:00:12]} 41. Bd5 {[%emt 0:01:00]} Nf6 {[%emt 0:01:25]} 42. Bb3 {[%emt 0:00:10]} Qc3 {[%emt 0:00:42]} 43. Qa3 {[%emt 0:01:49]} Qc7 {[%emt 0:00:42]} 44. Rc1 {[%emt 0:03:02]} Qb7 {[%emt 0:01:27]} 45. Qa5 {[%emt 0:00:12]} Bd6 {[%emt 0:01:07]} 46. Rd1 {[%emt 0:03:37]} Qc7 {[%emt 0:00:31]} 47. Qf5 {[%emt 0:00:18]} Qe7 {[%emt 0:00:58]} 48. Rc1 {[%emt 0:01:10]} Kf8 {[%emt 0:01:35]} 49. Rd1 {[%emt 0:00:56]} g6 {[%emt 0:00:47]} 50. Qf3 {[%emt 0:00:13]} Kg7 {[%emt 0:00:06]} 51. Qc6 {[%emt 0:00:33]} Bc5 {[%emt 0:00:37]} 52. Rc1 {[%emt 0:00:44]} Ba7 {[%emt 0:00:34]} 53. Qc7 {[%emt 0:00:52]} Rb7 {[%emt 0:00:08]} 54. Qc3 {[%emt 0:00:05]} Bb6 {[%emt 0:01:53]} 55. Qf3 {[%emt 0:05:13]} Rd7 {[%emt 0:00:19]} 56. Qf4 {[%emt 0:02:22]} Qe4 {[%emt 0:00:34]} 57. Rc4 {[%emt 0:01:46]} Qe1+ {[%emt 0:00:02]} 58. Kg2 {[%emt 0:00:06]} Bxf2 {[%emt 0:00:07]} 0-1